Workbook

Sheet Титульний
A2: ЗВІТНІСТЬ
A4: ЗВІТ
A5: ПРО РОБОТУ ПРОКУРОРА
A7: за 12 місяців 2015 року
A10: Подають: | E10: Терміни подання | F10: Форма № П
A11: міські, районні, міжрайонні прокурори – прокурорам Автономної Республіки Крим, областей, міст Києва і Севастополя | E11: до 2 числа після звітного періоду | F11: "квартальна"
A12: прокурори районів у містах з районним поділом – прокурору міста | E12: до 2 числа після звітного періоду | F12: ЗАТВЕРДЖЕНО
A13: прокурори міст з районним поділом – прокурору обласного рівня | E13: до 3 числа після звітного періоду | F13: Наказ Генерального прокурора України від 28 листопада 2012 року № 121 зі змінами та доповненнями: від 25 квітня 2013 року №55 від 11 лютого 2014 року №18 від 26 листопада 2014 року №132
A14: військові прокурори гарнізонів - військовому прокурору регіону | E14: до 2 числа після звітного періоду
A15: прокурори Автономної Республіки Крим, областей, міст Києва і Севастополя – управлінню організації ведення Єдиного реєстру досудових розслідувань та статистичної інформації Генеральної прокуратури України | E15: до 5 числа після звітного періоду
A16: військові прокурори регіонів - Головній військовій прокуратурі | E16: до 5 числа після звітного періоду | F16: за погодженням з Держстатом
A17: Головна військова прокуратура – управлінню організації ведення Єдиного реєстру досудових розслідувань та статистичної інформації Генеральної прокуратури України | E17: до 6 числа після звітного періоду
A18: начальники структурних підрозділів Генеральної прокуратури України – управлінню організації ведення Єдиного реєстру досудових розслідувань та статистичної інформації Генеральної прокуратури України | E18: до 3 числа після звітного періоду
A19: Генеральна прокуратура України – до Держстату | E19: на 35 день після звітного періоду (півріччя, рік)
A21: Респондент:
A22: Найменування: | B22: Прокуратура області
A23: Місцезнаходження:
A25: (поштовий індекс, область, район, населений пункт, вулиця/провулок, площа тошо, № будинку)

Sheet 1
A1: РОЗДІЛ 1. Представництво інтересів громадян та держави в судах | N1: РОЗДІЛ 1. Представництво інтересів громадян та держави в судах
A2: Таблиця 1 | D2: рядок | E2: Досудове врегулювання спорів | G2: Кількість справ, що перебувають у провадженні суду | I2: Сума у справах, за якими судом відкрито провадження з початку звітного року (тис.грн.) | J2: Розгляд справи судом | M2: Сума за рішеннями, які передано на примусове виконання (тис.грн.) | N2: Таблиця 1 | Q2: рядок | R2: Кількість справ у яких забезпечено участь прокурора | S2: Сума за рішеннями прийнятими на користь сторони, в інтересах якої прокурор вступив у справу (тис.грн.) | T2: Ініціювання перегляду судових рішень | AC2: Кількість громадян права яких поновлено у судовому порядку | AD2: Площа повернутих земель та незаконне надання яких попереджено | AE2: Розпочато кримінальних проваджень
E3: Кількість направлених звернень | F3: Кількість позовів (заяв, скарг, подань), внесених у разі неврегулювання спору | J3: Задоволено позовів, заяв, скарг, подань | L3: Сума, яку добровільно відшкодовано за закритими справами (тис.грн.) | T3: Апеляційні скарги | V3: Касаційні скарги | X3: Заяви до Верховного Суду України | Z3: Заяви про перегляд судових рішень за нововиявленими обставинами | AB3: Сума за рішеннями, скасованими за скаргами, заявами прокурора (тис.грн.)
G4: Усього | H4: Сума, на яку заявлено позови, заяви у цих справах (тис.грн.) | J4: Усього | K4: Сума по них (тис.грн.) | T4: Розглянуто | U4: Задоволено | V4: Розглянуто | W4: Задоволено | X4: Розглянуто | Y4: Задоволено | Z4: Розглянуто | AA4: Задоволено
A5: а | D5: б | E5: 1 | F5: 2 | G5: 3 | H5: 4 | I5: 5 | J5: 6 | K5: 7 | L5: 8 | M5: 9 | N5: а | Q5: б | R5: 10 | S5: 11 | T5: 12 | U5: 13 | V5: 14 | W5: 15 | X5: 16 | Y5: 17 | Z5: 18 | AA5: 19 | AB5: 20 | AC5: 21 | AD5: 22 | AE5: 23
A6: УСЬОГО | D6: 1 | G6: 39 | H6: 49061 | I6: 358826 | J6: 662 | K6: 230681 | L6: 10891 | M6: 28787 | N6: УСЬОГО | Q6: 1 | R6: 891 | S6: 1437 | T6: 58 | U6: 33 | V6: 11 | W6: 4 | AB6: 917 | AC6: 154 | AD6: 10822 | AE6: 87
A7: з них: | B7: у цивільному судочинстві | D7: 2 | E7: x | F7: x | G7: 19 | H7: 1034 | I7: 86156 | J7: 331 | K7: 55337 | L7: 2379 | M7: 11897 | N7: з них: | O7: у цивільному судочинстві | Q7: 2 | R7: 584 | S7: 222 | T7: 19 | U7: 14 | V7: 7 | W7: 2 | AB7: 527 | AC7: 123 | AD7: 893 | AE7: x
B8: у господарському судочистві | D8: 3 | E8: x | F8: x | G8: 8 | H8: 47969 | I8: 135790 | J8: 115 | K8: 56731 | L8: 6657 | M8: 11680 | O8: у господарському судочистві | Q8: 3 | R8: 169 | S8: 1090 | T8: 18 | U8: 7 | V8: 4 | W8: 2 | AB8: 378 | AC8: 2 | AD8: 1148 | AE8: x
B9: в адміністративному судочинстві | D9: 4 | E9: x | F9: x | G9: 1 | H9: 8 | I9: 128245 | J9: 147 | K9: 116856 | L9: 1838 | M9: 5026 | O9: в адміністративному судочинстві | Q9: 4 | R9: 138 | S9: 125 | T9: 21 | U9: 12 | AB9: 12 | AC9: 29 | AD9: 8781 | AE9: x
A10: В інтересах громадян | D10: 5 | G10: 4 | H10: 8 | I10: 14419 | J10: 154 | K10: 12918 | L10: 1305 | M10: 1181 | N10: В інтересах громадян | Q10: 5 | R10: 326 | S10: 14 | T10: 11 | U10: 8 | V10: 1 | AB10: 303 | AC10: 154 | AD10: 58 | AE10: 7
A11: На захист інтересів держави | D11: 6 | G11: 24 | H11: 49003 | I11: 335722 | J11: 435 | K11: 215956 | L11: 9569 | M11: 27296 | N11: На захист інтересів держави | Q11: 6 | R11: 538 | S11: 1423 | T11: 47 | U11: 25 | V11: 10 | W11: 4 | AB11: 614 | AD11: 10760 | AE11: 78
A12: з них: | B12: У бюджетній сфері | D12: 7 | I12: 27371 | J12: 58 | K12: 2638 | L12: 212 | M12: 1683 | N12: з них: | O12: У бюджетній сфері | Q12: 7 | R12: 47 | S12: 16 | T12: 4 | U12: 2 | AE12: 22
B13: З питань державної та комунальної власності | D13: 8 | G13: 4 | H13: 102 | I13: 37728 | J13: 76 | K13: 17506 | L13: 467 | M13: 2634 | O13: З питань державної та комунальної власності | Q13: 8 | R13: 126 | S13: 94 | T13: 11 | U13: 3 | V13: 3 | W13: 2 | AD13: 44 | AE13: 8
B14: У сфері охорони навколишнього природного середовища | D14: 9 | G14: 3 | H14: 390 | I14: 1480 | J14: 34 | K14: 1272 | L14: 82 | M14: 745 | O14: У сфері охорони навколишнього природного середовища | Q14: 9 | R14: 35 | T14: 2 | U14: 2 | V14: 1 | AB14: 369 | AE14: 21
A15: з рядка 1: | B15: Про відшкодування шкоди, заподіяної кримінальними правопорушеннями | D15: 10 | G15: 13 | H15: 57 | I15: 8946 | J15: 90 | K15: 1968 | L15: 21 | M15: 363 | N15: з рядка 1: | O15: Про відшкодування шкоди, заподіяної кримінальними правопорушеннями | Q15: 10 | R15: 27 | S15: 76
B16: у т.ч. | C16: у кримінальному судочинстві | D16: 11 | E16: x | F16: x | G16: 11 | H16: 50 | I16: 8635 | J16: 69 | K16: 1757 | L16: 17 | M16: 184 | O16: у т.ч. | P16: у кримінальному судочинстві | Q16: 11 | R16: x | S16: x
C17: з ознаками корупції | D17: 12 | G17: 1 | H17: 11 | I17: 16 | P17: з ознаками корупції | Q17: 12 | R17: 1
C18: що вчинені неповнолітніми | D18: 13 | P18: що вчинені неповнолітніми | Q18: 13
B19: З питань виконання судових рішень | D19: 14 | I19: 50 | J19: 4 | K19: 50 | M19: 126 | O19: З питань виконання судових рішень | Q19: 14 | R19: 27 | AD19: 4 | AE19: 2
B20: З питань захисту інтересів дітей | D20: 15 | G20: 2 | H20: 13 | I20: 708 | J20: 59 | K20: 590 | L20: 61 | M20: 496 | O20: З питань захисту інтересів дітей | Q20: 15 | R20: 235 | T20: 5 | U20: 4 | AB20: 33 | AC20: 50 | AE20: 5
B21: у т.ч.: | C21: щодо інтересів держави у сфері охорони дитинства | D21: 16 | G21: 1 | H21: 5 | I21: 145 | J21: 10 | K21: 76 | L21: 61 | M21: 219 | O21: у т.ч.: | P21: щодо інтересів держави у сфері охорони дитинства | Q21: 16 | R21: 12 | T21: 2 | U21: 1 | AB21: 9 | AE21: 3
B22: У воєнній сфері | D22: 17 | O22: У воєнній сфері | Q22: 17
B23: у т.ч.: | C23: у сфері оборонно промислового комплексу | D23: 18 | O23: у т.ч.: | P23: у сфері оборонно промислового комплексу | Q23: 18
B24: З питань земельних відносин | D24: 19 | G24: 14 | H24: 1671 | I24: 225006 | J24: 197 | K24: 189942 | L24: 6738 | M24: 10064 | O24: З питань земельних відносин | Q24: 19 | R24: 217 | T24: 18 | U24: 12 | V24: 1 | AB24: 212 | AC24: 6 | AD24: 10822 | AE24: 16
B25: у т.ч.: | C25: в інтересах держави | D25: 20 | G25: 13 | H25: 1671 | I25: 213446 | J25: 181 | K25: 178513 | L25: 6696 | M25: 10019 | O25: у т.ч.: | P25: в інтересах держави | Q25: 20 | R25: 206 | T25: 17 | U25: 11 | AB25: 212 | AD25: 10764 | AE25: 14
A26: Контрольний рядок | D26: 21 | E26: =SUM(E6:E25) -> 0 | F26: =SUM(F6:F25) -> 0 | G26: 157 | H26: 151053 | I26: 1582689 | J26: 2622 | K26: 1082791 | L26: 46994 | M26: 112400 | N26: Контрольний рядок | Q26: 21 | R26: =SUM(R6:R25) -> 3579 | S26: =SUM(S6:S25) -> 4497 | T26: 233 | U26: 134 | V26: 38 | W26: 14 | X26: 0 | Y26: 0 | Z26: 0 | AA26: 0 | AB26: 3586 | AC26: 518 | AD26: 54096 | AE26: 263

Sheet 2-4
A1: РОЗДІЛ 2. Нагляд за додержанням законів органами, які проводять оперативно-розшукову діяльність та досудове розслідування
A2: Таблиця 2 | E2: рядок | F2: Виявлено та внесено до Реєстру відомості про вчинені кримінальні правопорушення, раніше не обліковані | G2: з числа укритих від обліку: | I2: Скасовано постанов про закриття кримінальних проваджень | J2: у т.ч. направлено до суду | K2: Винесено прокурором постанов про відновлення досудового розслідування | L2: Дано письмових вказівок | M2: Прийнято прокурором участь у розгляді слідчим суддею скарг на рішення, дії чи бездіяльність слідчого або прокурора | N2: у т.ч. | O2: Із задоволеннням скарги (з графи 8) | P2: у т.ч. | R2: Таблиця 4 | U2: рядок | V2: УСЬОГО | W2: За фактами порушень, допущених при:
A3: Нагляд за законністю проведення досудового розслідування | N3: щодо невнесення до Реєстру відомостей про крим. правопорушення | P3: щодо невнесення до Реєстру відомостей про крим. правопорушення | R3: Нагляд за додержанням законності у діяльності правоохоронних органів | W3: реєстрації заяв і повідомлень про вчинені кримінальні правопорушення | X3: здійсненні досудового розслідування злочинів | Y3: здійсненні досудового розслідування кримінальних проступків | Z3: застосуванні незаконних методів досудового розслідування | AA3: у т.ч. у провадженнях щодо неповнолітніх ( з гр.1)
G4: надіслано до суду | H4: закрито за п.п.1, 2, 3 ч.1 ст. 284 КПК
A5: а | E5: б | F5: 1 | G5: 2 | H5: 3 | I5: 4 | J5: 5 | K5: 6 | L5: 7 | M5: 8 | N5: 9 | O5: 10 | P5: 11 | R5: а | U5: б | V5: 1 | W5: 2 | X5: 3 | Y5: 4 | Z5: 5 | AA5: 6
A6: УСЬОГО | E6: 1 | F6: 62 | G6: 3 | H6: 26 | I6: 1024 | J6: 33 | K6: 8 | L6: 4107 | M6: 153 | N6: 42 | O6: 44 | P6: 10 | R6: Розглянуто документів прокурора з вжиттям заходів до усунення порушень законів у діяльності органів | S6: внутрішніх справ | U6: 1 | V6: 205 | W6: 30 | X6: 136 | AA6: 20
A7: Прокурорів (з рядка 1) | E7: 2 | F7: x | G7: x | H7: x | I7: x | J7: x | K7: x | L7: x | M7: 18 | N7: 12 | O7: 7 | P7: 4 | S7: з них: | T7: спец. підрозділів і ССВ | U7: 2
A8: з них за кримінальними провадженнями (з рядка 1): | B8: слідчих прокуратури | E8: 3 | I8: 15 | L8: 111 | M8: 47 | N8: 19 | O8: 8 | P8: 1 | T8: на транспорті | U8: 3 | V8: 9 | W8: 1 | X8: 8 | AA8: 1
B9: слідчих МВС | E9: 4 | F9: 62 | G9: 3 | H9: 26 | I9: 999 | J9: 33 | K9: 6 | L9: 3898 | M9: 81 | N9: 11 | O9: 28 | P9: 5 | S9: фіскальної служби | U9: 4 | V9: 3 | X9: 3
B10: з них: | C10: про злочини | E10: 5 | F10: 62 | G10: 3 | H10: 26 | I10: 999 | J10: 33 | K10: 6 | L10: 3898 | M10: 81 | N10: 11 | O10: 28 | P10: 5 | S10: служби безпеки | U10: 5 | V10: 1 | X10: 1
C11: у т.ч.: | D11: спец. відділів | E11: 6 | R11: Притягнуто до дисциплінарної відповідальності працівників органів за документами прокурора | S11: внутрішніх справ | U11: 6 | V11: 210 | W11: 48 | X11: 125 | AA11: 15
D12: на транспорті | E12: 7 | F12: 11 | H12: 11 | I12: 17 | L12: 142 | S12: з них: | T12: спец. підрозділів і ССВ | U12: 7
C13: про кримінальні проступки | E13: 8 | T13: на транспорті | U13: 8 | V13: 7 | W13: 1 | X13: 6
C14: у т.ч.: | D14: спец. відділів | E14: 9 | S14: фіскальної служби | U14: 9 | V14: 11 | X14: 11
D15: на транспорті | E15: 10 | S15: служби безпеки | U15: 10 | V15: 2 | X15: 2
B16: слідчих ДФС | E16: 11 | I16: 9 | K16: 2 | L16: 50 | M16: 7 | O16: 1 | R16: Повідомлено про підозру за направленими до суду кримінальними провадженнями працівникам органів | S16: внутрішніх справ | U16: 11 | V16: 10
B17: слідчих служби безпеки | E17: 12 | I17: 1 | L17: 48 | S17: з них: | T17: спец. підрозділів і ССВ | U17: 12
B18: у т.ч.: | C18: спец. підрозділів | E18: 13 | T18: на транспорті | U18: 13
A19: у т.ч. у провадженнях щодо неповнолітніх (з рядка 1) | E19: 14 | I19: 5 | J19: 2 | L19: 113 | S19: фіскальної служби | U19: 14
A20: Контрольний рядок | E20: 15 | F20: =SUM(F6:F19) -> 197 | G20: 9 | H20: 89 | I20: 3069 | J20: 101 | K20: 22 | L20: 12367 | M20: 387 | N20: 95 | O20: 116 | P20: 25 | S20: служби безпеки | U20: 15
R21: Контрольний рядок | U21: 16 | V21: =SUM(V6:V20) -> 458 | W21: 80 | X21: 292 | Y21: 0 | Z21: 0 | AA21: 36
A22: Таблиця 3 Розглянуті апеляційні скарги прокурора на судові рішення з питань досудового розслідування | E22: рядок | F22: Апеляційні скарги
F23: задоволено | H23: відхилено
A24: а | E24: б | F24: 1 | H24: 2
A25: Про скасування ухвал слідчого судді | E25: 1 | F25: 12 | H25: 6
A26: з них: | B26: про відмову в наданні дозволу на затримання | E26: 2
B27: у т.ч: | C27: у провадженнях щодо неповнолітніх | E27: 3
B28: про відмову у відстороненні від посади | E28: 4
A29: Контрольний рядок | E29: 5 | F29: =SUM(F25:F28) -> 12 | H29: =SUM(H25:H28) -> 6

Sheet 5-7
A2: Таблиця 5 | E2: рядок | F2: Усього | G2: у тому числі у кримінальних провадженнях органів: | L2: щодо неповнолітніх (з графи 1)
G3: прокуратури | H3: МВС | I3: з них: на транспорті | J3: служби безпеки | K3: ДФС
A4: Клопотання до суду про застосування запобіжних заходів
A5: а | E5: б | F5: 1 | G5: 2 | H5: 3 | I5: 4 | J5: 5 | K5: 6 | L5: 7
A6: Подано до суду клопотань (усього) | E6: 1 | F6: 774 | G6: 29 | H6: 734 | I6: 1 | J6: 10 | K6: 1 | L6: 19
A7: з них: | B7: про особисте зобов'язання | E7: 2 | F7: 262 | G7: 6 | H7: 248 | I7: 1 | J7: 7 | K7: 1 | L7: 6
B8: про заставу | E8: 3 | F8: 2 | G8: 2
B9: про домашній арешт | E9: 4 | F9: 95 | G9: 1 | H9: 94 | L9: 5
B10: про тримання під вартою | E10: 5 | F10: 415 | G10: 20 | H10: 392 | J10: 3 | L10: 8
A11: Подано клопотань про поміщення до психіатричного закладу | E11: 6 | F11: 2 | H11: 2
A12: Відкликано прокурором клопотань | E12: 7
A13: з них: | B13: про особисте зобов'язання | E13: 8
B14: про заставу | E14: 9
B15: про домашній арешт | E15: 10
B16: про тримання під вартою | E16: 11
A17: Відкликано клопотань про поміщення до психіатричного закладу | E17: 12
A18: Відмовлено слідчим суддею у задоволенні клопотань (з рядків 4,5) | E18: 13 | F18: 71 | G18: 1 | H18: 70 | L18: 2
A19: з них: | B19: про домашній арешт | E19: 14 | F19: 8 | H19: 8
B20: про тримання під вартою | E20: 15 | F20: 63 | G20: 1 | H20: 62 | L20: 2
B21: у т.ч. з обранням (з рядка 15): | C21: особистого зобов’язання | E21: 16 | F21: 13 | H21: 13
C22: особистої поруки | E22: 17
C23: застави | E23: 18 | F23: 1 | G23: 1
C24: домашнього арешту | E24: 19 | F24: 43 | H24: 43 | L24: 2
A25: Відмовлено у задоволенні клопотань про поміщення до психіатричного закладу (з рядка 6) | E25: 20
A26: Подано апеляційних скарг на ухвали слідчого судді про відмову в застосуванні запобіжного заходу | E26: 21 | F26: 10 | H26: 10
A27: з них: | B27: про домашній арешт | E27: 22
B28: про тримання під вартою | E28: 23 | F28: 10 | H28: 10
A29: Подано апеляційних скарг на ухвали слідчого судді про відмову у поміщенні до психіатричного закладу | E29: 24
A30: Задоволено (з рядка 21) | E30: 25 | F30: 5 | H30: 5
A31: з них: | B31: про домашній арешт | E31: 26
B32: про тримання під вартою | E32: 27 | F32: 5 | H32: 5
A33: Задоволено апеляційних скарг на ухвали про відмову у поміщенні до психіатричного закладу (з рядка 24) | E33: 28
A34: Звільнено з-під варти осіб на стадії досудового розслідування та судового провадження (за закінченими досудовим розслідуванням або розглянутими судами кримінальними провадженнями) | E34: 29
A35: з них осіб за кримінал. провадженнями (з рядка 29): | B35: закритими за результатами досудового розслідування | C35: За відсутністю події або складу кримінального правопорушення чи за недоведеністю винуватості підозрюваного | E35: 30
C36: з них: | D36: за відсутністю складу кримінального правопорушення у зв’язку із зміною законодавства (декриміналізацією) | E36: 31
B37: розглянутими судами | C37: За виправданням обвинуваченого або закриттям кримінал. провадження судом | E37: 32
C38: з них: | D38: за невстановленням події або складу кримінал. правопорушення чи за недоведеністю винуватості особи у суді | E38: 33
D39: при відмові прокурора від підтримання обвинувачення | E39: 34
D40: за закриттям провадження з інших підстав | E40: 35
D41: за відсутністю складу кримінального правопорушення у зв’язку із зміною законодавства (декриміналізацією) | E41: 36
C42: Звільнено у зв’язку із засудженням до покарання, не пов’язаного з позбавленням волі | E42: 37
A43: Звільнено осіб з-під варти у зв’язку із скасуванням апеляційним судом ухвали суду про тримання під вартою | E43: 38 | F43: 2 | H43: 2
A44: Звільнено осіб з-під варти на стадії досудового розслідування у зв'язку з внесенням застави (ч. 3 ст. 183 КПК України) | E44: 39 | F44: 42 | G44: 13 | H44: 29
A45: Контрольний рядок | E45: 40 | F45: =SUM(F6:F44) -> 1823 | G45: 74 | H45: 1727 | I45: 2 | J45: 20 | K45: 2 | L45: 44

Sheet 8
A1: РОЗДІЛ 3. Участь прокурорів у судовому розгляді кримінальних проваджень та перегляді судових рішень
A2: Таблиця 8 Участь прокурорів у судовому розгляді кримінальних проваджень судами всіх інстанцій | E2: рядок | F2: Усього | G2: щодо неповнолітніх (з графи 1)
A3: а | E3: б | F3: 1 | G3: 2
A4: Участь у розгляді кримінальних проваджень судами першої інстанції (усього) | E4: 1 | F4: 4403 | G4: 131
A5: у т.ч.: | B5: у підготовчому судовому засіданні | E5: 2 | F5: 556 | G5: 17
B6: з них: | C6: з поверненням провадження прокурору при відмові у затвердженні угоди | E6: 3 | F6: 2
C7: у розгляді судом клопотань про направлення проваджень для закриття | E7: 4 | F7: 63 | G7: 1
C8: з ухваленням вироку на підставі угоди | E8: 5 | F8: 224 | G8: 6
C9: у т.ч.: | D9: про визнання винуватості | E9: 6 | F9: 94 | G9: 1
B10: у судовому розгляді проваджень з ухваленням вироку | E10: 7 | F10: 2361 | G10: 99
B11: з них: | C11: з ухваленням вироку на підставі угоди | E11: 8 | F11: 20 | G11: 1
C12: у т.ч.: | D12: про визнання винуватості | E12: 9 | F12: 9
B13: у розгляді судом клопотань прокурора про скасування вироку, яким затверджена угода (ст.476 КПК України) | E13: 10
B14: у провадженнях про застосування примусових заходів медичного характеру | E14: 11 | F14: 25
B15: у провадженнях про продовження, зміну, припинення примусових заходів медичного характеру, відновлення кримінального провадження | E15: 12 | F15: 90
B16: у розгляді судом клопотань про застосування примусових заходів виховного характеру | E16: 13 | F16: 10 | G16: 9
B17: у провадженні у формі приватного обвинувачення із закриттям за заявою потерпілого у зв’язку з відмовою від обвинувачення (п.7 ч.1 ст.284 КПК України) | E17: 14 | F17: 61 | G17: 2
B18: у розгляді судом питань, пов’язаних з виконанням вироків | E18: 15 | F18: 1205 | G18: 2
B19: у розгляді судом питань, пов’язаних із застосуванням амністії | E19: 16 | F19: 38
A20: з них (з рядка 7): | B20: розглянуто за спрощеною процедурою (ч.3 ст.349 КПК України) | E20: 17 | F20: 1556
B21: про кримінальні проступки | E21: 18
B22: у провадженнях про вчинення кримінальних правопорушень у складі ОГ і ЗО | E22: 19 | F22: 1
B23: зі зміною обвинувачення прокурором у суді | E23: 20 | F23: 35 | G23: 3
B24: згідно з позицією потерпілого, який не погодився зі зміною обвинувачення прокурором | E24: 21
B25: з висуненням прокурором додаткового обвинувачення в суді | E25: 22
B26: з ухваленням виправдувального вироку (в особах) | E26: 23 | F26: 21 | G26: 2
B27: у т.ч.: | C27: згідно з позицією потерпілого при відмові прокурора від обвинувачення | E27: 24
B28: з ухваленням обвинувального вироку, де прокурор відмовився від обвинувачення (в особах) | E28: 25
A29: Участь у кримінальних провадженнях, закритих за реабілітуючими підставами судами усіх інстанцій(в особах) | E29: 26 | F29: 4
A30: з них: | B30: згідно з позицією прокурора | E30: 27 | F30: 1
A31: Участь у перегляді судових рішень судом апеляційної інстанції | E31: 28 | F31: 609 | G31: 36
A32: з них: | B32: з ухваленням нового вироку | E32: 29 | F32: 52 | G32: 3
A33: з рядка 28 | B33: вироків, ухвалених на підставі угоди про примирення | E33: 30 | F33: 2
B34: вироків, ухвалених на підставі угоди про визнання винуватості | E34: 31 | F34: 2 | G34: 1
A35: Участь у перегляді судових рішень судом касаційної інстанції | E35: 32
A36: у т.ч.: | B36: вироків, ухвалених на підставі угоди про визнання винуватості та постановлених щодо них рішень суду апеляційної інстанції | E36: 33
A37: Участь у перегляді судових рішень Верховним Судом України | E37: 34
A38: з них: | B38: на підставі п.1 ч.1 ст.445 КПК України | E38: 35
B39: на підставі п.2 ч.1 ст.445 КПК України | E39: 36
A40: Участь у перегляді судових рішень за нововиявленими обставинами | E40: 37 | F40: 3
A41: з них (з рядка 37): | B41: судами першої інстанції | E41: 38 | F41: 3
B42: з них: | C42: із скасуванням вироку | E42: 39
C43: у т.ч. | D43: за заявами прокурора | E43: 40
B44: апеляційними судами | E44: 41
B45: з них: | C45: із скасуванням вироку | E45: 42
C46: у т.ч.: | D46: за заявами прокурора | E46: 43
B47: Вищим спеціалізованим судом України з розгляду цивільних і кримінальних справ | E47: 44
B48: з них: | C48: із скасуванням вироку | E48: 45
C49: у т.ч.: | D49: за заявами прокурора | E49: 46
A50: Контрольний рядок | E50: 47 | F50: =SUM(F4:F49) -> 11450 | G50: =SUM(G4:G49) -> 314

Sheet 9
A2: Таблиця 9 | F2: рядок | G2: Апеляційні скарги прокурора | I2: Касаційні скарги прокурора | K2: Заяви в порядку ст.445 КПК
A3: Розглянуті апеляційні, касаційні скарги та заяви прокурора (за кількістю осіб) | G3: задово-лено | H3: відхи-лено | I3: задово-лено | J3: відхи-лено | K3: задово-лено | L3: відхи-лено
A4: а | F4: б | G4: 1 | H4: 2 | I4: 3 | J4: 4 | K4: 5 | L4: 6
A5: Усього | F5: 1 | G5: 214 | H5: 65
A6: Підстави апеляційних, касаційних скарг та заяв прокурора (з рядка 1) | B6: Про скасування вироку (усього) | F6: 2 | G6: 113 | H6: 39 | K6: x | L6: x
B7: з них: | C7: з призначенням нового судового розгляду | F7: 3 | G7: 45 | H7: 2 | K7: x | L7: x
C8: з ухваленням нового вироку | F8: 4 | G8: 56 | H8: 35 | I8: x | J8: x | K8: x | L8: x
C9: з ряд. 3, 4 | D9: у зв’язку з виправданням особи | F9: 5 | G9: 15 | H9: 13 | K9: x | L9: x
D10: за м’якістю покарання | F10: 6 | G10: 25 | H10: 15 | K10: x | L10: x
C11: із закриттям провадження | F11: 7 | G11: 3 | K11: x | L11: x
C12: у т.ч. | D12: за реабілітуючими підставами | F12: 8 | K12: x | L12: x
C13: у провадженнях щодо неповнолітніх | F13: 9 | G13: 5 | H13: 2 | K13: x | L13: x
C14: у провадженнях про вчинення кримінал. правопорушень у складі ОГ і ЗО | F14: 10 | G14: 1 | H14: 2 | K14: x | L14: x
C15: ухваленого на підставі угоди | F15: 11 | G15: 1 | H15: 1 | K15: x | L15: x
C16: у т.ч. | D16: про примирення | F16: 12 | G16: 1 | K16: x | L16: x
D17: з них: | E17: направлено для здійснення досудового розслідування | F17: 13 | I17: x | J17: x | K17: x | L17: x
D18: про визнання винуватості | F18: 14 | H18: 1 | K18: x | L18: x
D19: з них: | E19: направлено для здійснення досудового розслідування | F19: 15 | I19: x | J19: x | K19: x | L19: x
B20: Про зміну вироку (усього) | F20: 16 | G20: 53 | H20: 6 | K20: x | L20: x
B21: з них: | C21: у т.ч. | D21: з пом’якшенням покарання | F21: 17 | G21: 2 | K21: x | L21: x
C22: у провадженнях щодо неповнолітніх | F22: 18 | G22: 8 | K22: x | L22: x
C23: у провадженнях про вчинення кримінал. правопорушень у складі ОГ і ЗО | F23: 19 | K23: x | L23: x
B24: Про скасування ухвал суду (усього) | F24: 20 | G24: 47 | H24: 20
B25: з них: | C25: з постановленням нової ухвали | F25: 21 | G25: 2 | I25: x | J25: x
C26: з направленням провадження на новий розгляд до суду касаційної інстанції | F26: 22 | G26: x | H26: x | I26: x | J26: x
C27: про повернення прокурору обвинувального акта, клопотання про застосування примусових заходів медичного або виховного характеру | F27: 23 | G27: 31 | H27: 14 | I27: x | J27: x | K27: x | L27: x
C28: про закриття провадження за реабілітуючими підставами | F28: 24 | K28: x | L28: x
B29: Про зміну ухвал суду (усього) | F29: 25 | G29: 1
A30: Контрольний рядок | F30: 26 | G30: =SUM(G5:G29) -> 623 | H30: 215 | I30: 0 | J30: 0 | K30: 0 | L30: 0

Sheet 10-11
A2: Таблиця 10 | E2: рядок | F2: У порядку глави 31 КПК | H2: У порядку глави 32 КПК
A3: Перегляд судових рішень (за кількістю осіб) з ініціативи - | F3: прокурора | G3: інших учасників | H3: прокурора | I3: інших учасників
A4: a | E4: б | F4: 1 | G4: 2 | H4: 3 | I4: 4
A5: Усього | E5: 1 | F5: 214 | G5: 61
A6: Підстави апеляційних, касаційних скарг та результати розгляду (з рядка 1) | B6: Про скасування вироку | E6: 2 | F6: 113 | G6: 23
B7: з них: | C7: із закриттям провадження | E7: 3 | F7: 4 | G7: 8
C8: з призначенням нового розгляду | E8: 4 | F8: 45 | G8: 15
C9: ухвалено новий вирок при скасуванні | E9: 5 | F9: 56 | H9: x | I9: x
B10: З рядків 4, 5 за м’якістю | E10: 6 | F10: 25 | G10: 1
B11: Про зміну вироку | E11: 7 | F11: 53 | G11: 37
B12: у т.ч. | C12: з пом’якшенням покарання | E12: 8 | G12: 36
B13: з рядків 2, 7 | C13: скасовано чи змінено за обставинами, які виникли після постановлення вироку | E13: 9 | F13: 1 | G13: 3
C14: у провадженнях щодо неповнолітніх | E14: 10 | F14: 13 | G14: 5
C15: у провадженнях про вчинення кримінальних правопорушень у складі ОГ і ЗО | E15: 11 | F15: 1 | G15: 1
B16: Про скасування ухвали | E16: 12 | F16: 47 | G16: 1
B17: з них: | C17: скасовано ухвал з поверненням обвинувального акта, клопотання про застосування примусових заходів медичного або виховного характеру | E17: 13 | F17: 31 | H17: x | I17: x
C18: із закриттям провадження за реабілітуючими підставами | E18: 14
C19: з постановленням нової ухвали | E19: 15 | F19: 2 | H19: x | I19: x
B20: Про зміну ухвали | E20: 16 | F20: 1
A21: Контрольний рядок | E21: 17 | F21: =SUM(F5:F20) -> 606 | G21: =SUM(G5:G20) -> 191 | H21: =SUM(H5:H20) -> 0 | I21: =SUM(I5:I20) -> 0
A23: РОЗДІЛ 4. Міжнародно-правове співробітництво у кримінальному провадженні
A24: Таблиця 11 | E24: рядок | F24: УСЬОГО | G24: Види правової допомоги
A25: Робота за зверненнями про правову допомогу | G25: виконання процесуальних дій | H25: перейняття кримінального провадження | I25: екстрадиція
A26: а | E26: б | F26: 1 | G26: 2 | H26: 3 | I26: 4
A27: Звернення іноземних установ | C27: Надійшло звернень у звітному періоді | E27: 1 | F27: 1 | G27: 1
C28: Виконано звернень | E28: 2 | F28: 1 | G28: 1
A29: Звернення установ України | C29: Підготовлено звернень у звітному періоді | E29: 3 | F29: 9 | G29: 6 | H29: 3
C30: з них (з рядка 3): | D30: органами прокуратури | E30: 4
D31: органами внутрішніх справ | E31: 5 | F31: 5 | G31: 3 | H31: 2
D32: органами служби безпеки | E32: 6 | F32: 4 | G32: 3 | H32: 1
D33: органами фіскальної служби | E33: 7
D34: судовими органами | E34: 8
C35: Надіслано звернень для виконання | E35: 9 | F35: 9 | G35: 6 | H35: 3
C36: Виконано звернень | E36: 10 | F36: 8 | G36: 7 | H36: 1
A37: Контрольний рядок | E37: 11 | F37: =SUM(F27:F36) -> 37 | G37: =SUM(G27:G36) -> 27 | H37: =SUM(H27:H36) -> 10 | I37: =SUM(I27:I36) -> 0

Sheet 12-14
A1: РОЗДІЛ 5. Нагляд за додержанням законів при виконанні судових рішень у кримінальних провадженнях, а також при застосуванні інших заходів примусового характеру, пов'язаних з обмеженням особистої свободи громадян
A2: Таблиця 12 Нагляд за додержанням законів при виконанні судових рішень у кримінальних провадженнях | C2: рядок | D2: Звільнено за ініціативою прокурора незаконно утримуваних осіб | E2: Розглянуто документів прокурора з вжиттям заходів щодо усунення порушень закону | F2: Притягнуто до дисциплінарної, адміністративної відповідальності працівників
A3: а | C3: б | D3: 1 | E3: 2 | F3: 3
A4: Усього: | C4: 1 | D4: 1 | E4: 175 | F4: 145
A5: Слідчі ізолятори | C5: 2 | D5: 1 | E5: 12 | F5: 9
A6: Арештні доми | C6: 3
A7: Виправні центри | C7: 4 | E7: 16 | F7: 6
A8: Виправні колонії | C8: 5 | E8: 44 | F8: 27
A9: Виховні колонії | C9: 6 | E9: 9 | F9: 9
A10: Кримінально-виконавчі інспекції | C10: 7 | E10: 28 | F10: 21
A11: Органи виконавчої влади, місцевого самоврядування, підприємства, установи, організації | C11: 8 | D11: x | E11: 54 | F11: 71
A12: Підрозділи державної виконавчої служби | C12: 9 | D12: x | E12: 9
A13: Відділення психіатричних лікарень та стаціонарної судово-психіатрічної експертизи | C13: 10 | E13: 2 | F13: 2
A14: Дисциплінарний батальйон | C14: 11
A15: Військові частини | C15: 12
A16: з рядка 1 | B16: у т.ч. щодо неповнолітніх | C16: 13 | E16: 39 | F16: 32
A17: Контрольний рядок | C17: 14 | D17: =SUM(D4:D16) -> 2 | E17: =SUM(E4:E16) -> 388 | F17: =SUM(F4:F16) -> 322
A19: Таблиця 13 Нагляд за додержанням законів при застосуванні інших заходів примусового характеру, пов’язаних з обмеженням особистої свободи громадян | C19: рядок | D19: Звільнено за ініціативою прокурора незаконно утримуваних осіб | E19: Розглянуто документів прокурора з вжиттям заходів щодо усунення порушень закону | F19: Притягнуто до дисциплінарної, адміністративної відповідальності працівників
A20: а | C20: б | D20: 1 | E20: 2 | F20: 3
A21: Усього: | C21: 1 | E21: 151 | F21: 83
A22: Пункти тимчасового тримання прикордонної служби та спецприміщення прикордонних загонів | C22: 2 | E22: 7 | F22: 13
A23: Ізолятори тимчасового тримання органів внутрішніх справ | C23: 3 | E23: 91 | F23: 43
A24: Місця тимчасового тримання органів СБУ | C24: 4
A25: Кімнати для затриманих та доставлених чергових частин органів внутрішніх справ | C25: 5 | E25: 4 | F25: 4
A26: Спец. приймальники для тримання осіб, підданих адміністративному арешту | C26: 6 | E26: 2 | F26: 2
A27: Спеціальні палати протитуберкульозних та територіальних медичних закладів | C27: 7 | E27: 28 | F27: 1
A28: Психіатричні заклади | C28: 8
A29: Приймальники-розподільники для дітей | C29: 9
A30: Школи та училища соціальної реабілітації | C30: 10
A31: Гауптвахти | C31: 11
A32: з рядка 1 | B32: у т.ч. щодо неповнолітніх | C32: 12 | E32: 13 | F32: 3
A33: Контрольний рядок | C33: 13 | D33: =SUM(D21:D32) -> 0 | E33: =SUM(E21:E32) -> 296 | F33: =SUM(F21:F32) -> 149
A35: Таблиця 14 | C35: рядок | D35: усього | E35: у т.ч. непов-нолітніх
A36: а | C36: б | D36: 1 | E36: 2
A37: Звільнено незаконно утримуваних осіб з: | B37: карцерів | C37: 1
B38: дисциплінарних ізоляторів | C38: 2
B39: приміщень камерного типу (одиночних камер) | C39: 3 | E39: x
A40: Контрольний рядок | C40: 4 | D40: =SUM(D37:D39) -> 0 | E40: =SUM(E37:E38) -> 0

Sheet 15-16
A1: РОЗДІЛ 6. Розгляд звернень
A2: Таблиця 15 | D2: рядок | E2: УСЬОГО | G2: Таблиця 16 | J2: рядок | K2: Вирішено звернень (без дублікатів) | L2: у т.ч., що надійшли від народних депутатів України | M2: Задоволено (з вирішених без дублікатів) | N2: у т.ч., що надійшли від народних депутатів України | O2: Вирішено звернень понад установлений термін
A3: Розгляд і вирішення звернень (без дублікатів) | G3: Категорії вирішених та задоволених звернень
A4: а | D4: б | E4: 1 | G4: а | J4: б | K4: 1 | L4: 2 | M4: 3 | N4: 4 | O4: 5
A5: Вирішено звернень | D5: 1 | E5: 5841 | G5: Усього | J5: 1 | K5: 5841 | L5: 203 | M5: 225 | N5: 1 | O5: 4
A6: Задоволено (з вирішених) | D6: 2 | E6: 225 | G6: З питань досудового розслідування | J6: 2 | K6: 3063 | L6: 131 | M6: 33 | O6: 1
A7: Задоволено повторних звернень на раніше прийняті рішення тієї ж прокуратури (з рядка 2) | D7: 3 | G7: з них з питань: | H7: щодо поновлення конституційних прав громадян в межах КПК | J7: 3 | K7: 11 | L7: 1
H8: від учасників кримінального провадження | J8: 4 | K8: 317 | M8: 11 | O8: 1
A9: Задоволено з тих, що раніше відхилялись підпорядкованими прокурорами | D9: 4 | E9: 1 | G9: у т.ч.: | H9: на дії і рішення | I9: слідчих прокуратури | J9: 5 | K9: 173 | L9: 8 | M9: 1
I10: слідчих МВС | J10: 6 | K10: 1366 | L10: 93 | M10: 26 | O10: 1
I11: з них слідчих відділів "ОЗ" | J11: 7 | K11: 5 | M11: 1
A12: Направлено звернень до інших відомств для вирішення | D12: 5 | E12: 3379 | I12: слідчих ДФС | J12: 8 | K12: 46 | L12: 1
I13: процесуальних керівників | J13: 9 | K13: 1
A14: у т.ч.: | B14: що надійшли від народних депутатів України | D14: 6 | E14: 29 | G14: З питань додержання законів про національну безпеку | J14: 10 | K14: 1 | L14: 1
A15: Повернуто заявникам або залишено без розгляду | D15: 7 | E15: 105 | G15: у т.ч. на дії і рішення: | I15: органів служби безпеки | J15: 11
I16: митних органів | J16: 12 | K16: 1 | L16: 1
A17: УСЬОГО (рядки 1+5+7) | D17: 8 | E17: 9325 | I17: прикордонних військ | J17: 13
A18: Направлено звернень підпорядкованим (іншим) прокурорам | D18: 9 | E18: 1579 | G18: З питань надання правової допомоги | J18: 14 | K18: 4 | M18: 1
G19: З питань участі у кримінальному провадженні в суді | J19: 15 | K19: 57 | L19: 1
A20: у т.ч.: | B20: що надійшли від народних депутатів України | D20: 10 | G20: З питань представництва інтересів громадян та держави в суді | J20: 16 | K20: 443 | L20: 23 | M20: 115 | O20: 1
A21: Розглянуто (вирішено) звернень з порушенням встановленого порядку (з рядків 1, 5, 9) | D21: 11 | E21: 5 | G21: у т.ч. з питань: | H21: законності судових рішень | J21: 17 | K21: 31 | L21: 1 | M21: 1
H22: неправомірності дій службових та інших осіб при здійсненні судочинства | J22: 18 | K22: 4 | M22: 1
A23: у т.ч.: | B23: що надійшли від народних депутатів України | D23: 12 | G23: Про права дітей | J23: 19 | K23: 8 | M23: 2
G24: З питань додержання законодавства при виконанні рішень судів та інших органів | J24: 20 | K24: 47 | L24: 4
A25: Залишок звернень на кінець звітного періоду | D25: 13 | E25: 272 | G25: З питань нагляду за додержанням кримінально-виконавчого законодавства | J25: 21 | K25: 397 | L25: 4 | M25: 43
A26: Прийнято громадян на особистому прийомі | D26: 14 | E26: 3210 | G26: у т.ч.: | H26: на недозволені заходи впливу адміністрації місць застосування заходів примусового характеру | J26: 22 | K26: 14 | M26: 4
A27: з рядка 14 | B27: керівником прокуратури | D27: 15 | E27: 1129 | G27: Контрольний рядок | J27: 23 | K27: =SUM(K5:K26) -> 11830 | L27: =SUM(L5:L26) -> 472 | M27: =SUM(M5:M26) -> 464 | N27: =SUM(N5:N26) -> 1 | O27: =SUM(O5:O26) -> 8
B28: з них: | C28: в’язнів | D28: 16 | E28: 97
A29: з рядка 15 | B29: особисто прокурором області | D29: 17 | E29: 351
B30: з них: | C30: в’язнів | D30: 18 | E30: 27
A31: Задоволено звернень з тих, що прийняті особисто керівником прокуратури | D31: 19 | E31: 21
A32: у т.ч.: | B32: в’язнів | D32: 20
B33: з них: | C33: прийнятих прокурором області | D33: 21
A34: Виключено з обліку звернень | D34: 22 | E34: 414
A35: Контрольний рядок | D35: 23 | E35: =SUM(E5:E34) -> 26010

Sheet 17-19
A1: РОЗДІЛ 7. Висвітлення діяльності органів прокуратури
A2: Таблиця 17 | H2: рядок | I2: УСЬОГО
A3: а | H3: б | I3: 1
A4: Інформація в органи влади | H4: 1 | I4: 120
A5: Виступи в засобах масової інформації | H5: 2 | I5: 2216
A6: з них: | B6: друковані ЗМІ | H6: 3 | I6: 342
B7: електронні ЗМІ | H7: 4 | I7: 391
B8: інформаційні агентства | H8: 5 | I8: 57
B9: інтернет | H9: 6 | I9: 1426
B10: акредитовані в Україні зарубіжні ЗМІ | H10: 7
A11: Підготовлено програм | H11: 8
A12: з них: | B12: протрансльовано в ефірі центральних телеканалів | H12: 9
A13: Контрольний рядок | H13: 10 | I13: =SUM(I4:I12) -> 4552
A14: РОЗДІЛ 8. Розгляд запитів на інформацію
A15: Таблиця 18 | C15: рядок | D15: УСЬОГО | F15: Таблиця 19 | H15: рядок | I15: Надано інформацію на запити | J15: Відмовлено у задоволенні запиту | K15: Надано роз'яснення
A16: а | C16: б | D16: 1 | F16: а | H16: б | I16: 1 | J16: 2 | K16: 3
A17: Розглянуто запитів (сума рядків 2+5+6) | C17: 1 | D17: 92 | F17: З питань досудового розслідування | H17: 1 | I17: 30 | K17: 3
A18: Надано інформацію на запит | C18: 2 | D18: 74 | F18: З питань підтримання державного обвинувачення в суді | H18: 2
A19: з них (з рядка 2): | B19: протягом 48 годин | C19: 3 | D19: 1 | F19: З питань представництва інтересів громадян та держави в суді | H19: 3 | I19: 1 | K19: 1
B20: з продовженням строку розгляду запиту | C20: 4 | D20: 1 | F20: З питань організаційно-розпорядчої діяльності | H20: 4 | I20: 8
A21: Відмовлено у задоволенні запиту | C21: 5 | F21: у т.ч.: | G21: про надання статистичної інформації | H21: 5 | I21: 6
A22: Надано роз'яснення | C22: 6 | D22: 18 | F22: З кадрових питань | H22: 6 | I22: 16
A23: Надіслано іншим розпорядникам | C23: 7 | D23: 7 | F23: З інших питань | H23: 7 | I23: 19 | K23: 14
A24: у т.ч.: | B24: підпорядкованим прокурорам | C24: 8 | D24: 5 | F24: Контрольний рядок | H24: 8 | I24: =SUM(I17:I23) -> 80 | J24: =SUM(J17:J23) -> 0 | K24: =SUM(K17:K23) -> 18
A25: Залишок запитів | C25: 9 | D25: 2
A26: у т.ч.: | B26: прийнято рішення про відстрочку в задоволенні запиту | C26: 10
A27: Контрольний рядок | C27: 11 | D27: =SUM(D17:D26) -> 200
A31: Прокурор області
G33: В. О. Носенко
A34: (підпис) | G34: (П.І.Б.)
A35: Виконавець .
B36: (П.І.Б.)
A37: Телефон: факс: електронна пошта: .
A39: Звіт складено в примірнику
A40: Прим.№1 -
A41: Прим.№2 -

Sheet dod 1-2
M1: Додаток (продовження)
A2: Таблиця 1 | D2: рядок | E2: Відкрито проваджень за позовами | F2: Розглянуто позовів | G2: Задоволено позовів | H2: Сума, на яку задоволено позови (тис. грн.) | I2: Участь у розгляді справ у судах | L2: Подано скарг, заяв | M2: Задоволено скарг, заяв
A3: Позови до органів прокуратури та її посадових осіб, участь у розгляді таких справ у судах | I3: Першої інстанції | J3: Апеляційної інстанції | K3: Касаційної інстанції
A4: а | D4: б | E4: 1 | F4: 2 | G4: 3 | H4: 4 | I4: 5 | J4: 6 | K4: 7 | L4: 8 | M4: 9
A5: УСЬОГО | D5: 1 | E5: 11 | F5: 13 | G5: 4 | H5: 303 | I5: 12 | J5: 5 | L5: 5 | M5: 5
A6: у т.ч. (з рядка 1): | B6: про відшкодування шкоди, заподіяної органами прокуратури (ст.1176 ЦК України) | D6: 2 | E6: 5 | F6: 4 | G6: 4 | H6: 303 | I6: 4 | J6: 4 | L6: 4 | M6: 3
B7: на дії чи бездіяльність органів прокуратури | D7: 3 | E7: 1 | F7: 1 | I7: 1
B8: з трудових спорів | D8: 4 | E8: 4 | F8: 6 | I8: 6 | L8: 1 | M8: 2
A9: Контрольний рядок | D9: 5 | E9: =SUM(E5:E8) -> 21 | F9: 24 | G9: 8 | H9: 606 | I9: 23 | J9: 9 | K9: 0 | L9: 10 | M9: 10
M10: Додаток (продовження)
A11: Таблиця 2 Участь прокурорів у розгляді справ судом | K11: рядок | L11: Усього справ | M11: щодо непов-нолітніх (з графи 1)
A12: а | K12: б | L12: 1 | M12: 2
A13: Участь у розгляді справ судами 1-ої інстанції (всього) | K13: 1 | L13: 4
A14: у т.ч. | B14: у судовому розгляді справ з постановленням вироку | K14: 2 | L14: 3
A15: З рядка 2 | B15: Про скоєння злочинів ОГ і ЗО | K15: 3 | L15: 2
B16: Зі зміною обвинувачення прокурором у суді | K16: 4
B17: Згідно з пропозицією потерпілого, який не погодився зі зміною обвинувачення прокурором | K17: 5
B18: З постановленням виправдувального вироку (в особах) | K18: 6
A19: Участь у розгляді справ, закритих за реабілітуючими підставами постановлених судами всіх інстанцій | K19: 7
A20: Участь у розгляді справ апеляційною інстанцією | K20: 8 | L20: 5
A21: у т.ч. | B21: у судовому розгляді справ з прийняттям рішення | K21: 9 | L21: 4
B22: з постановленням вироку | K22: 10 | L22: 1
A23: Участь у розгляді справ касаційною інстанцією | K23: 11
A24: у т.ч. | B24: щодо постановлених в апеляційному порядку вироків і постанов | K24: 12
B25: щодо рішень, передбачених ч.2 ст.383 КПК України (1961 року) | K25: 13
B26: за нововиявленими обставинами | K26: 14
A27: Участь у перегляді судових рішень Верховним Судом України | K27: 15
A28: у т.ч. | B28: на підставі п.1 ч.1 ст.40012 КПК України (1961 року) | K28: 16
B29: на підставі п.2 ч.1 ст.40012 КПК України (1961 року) | K29: 17
A30: Участь у розгляді судом питань, пов’язаних з виконанням вироків | K30: 18
A31: Контрольний рядок | K31: 19 | L31: =SUM(L13:L30) -> 19 | M31: =SUM(M13:M30) -> 0

Sheet dod 3-4
K1: Додаток (продовження)
A2: Таблиця 3 | E2: рядок | F2: Апеляції прокурора | H2: Касаційні подання на рішення | L2: Заяви в порядку ст.4005 КПК (1961 року)
A3: Розглянуті апеляції, касаційні скарги та заяви прокурора (за кількістю осіб) | H3: постановлені в апеляційному порядку | J3: передбачені ч.2 ст.383 КПК (1961 року)
F4: задово- лено | G4: відхи- лено | H4: задово- лено | I4: відхи- лено | J4: задово- лено | K4: відхи- лено | L4: задово- лено | M4: відхи- лено
A5: а | E5: б | F5: 1 | G5: 2 | H5: 3 | I5: 4 | J5: 5 | K5: 6 | L5: 7 | M5: 8
A6: Усього | E6: 1 | F6: 1 | G6: 4
A7: Мотиви подань та клопотань (з рядка 1) | B7: Про скасування вироку (усього) | E7: 2 | F7: 1 | G7: 3
B8: З рядка 2 | C8: З постановленням нового вироку | E8: 3 | F8: 1 | H8: x | I8: x | J8: x | K8: x | L8: x | M8: x
C9: Із закриттям справи | E9: 4
C10: у т.ч. | D10: з реабілітуючих підстав | E10: 5
C11: У справах щодо неповнолітніх | E11: 6
C12: У справах про скоєння злочинів ОГ і ЗО | E12: 7
B13: Про зміну вироку (усього) | E13: 8
B14: з рядка 8 | C14: З пом'якшенням покарання | E14: 9
C15: У справах щодо неповнолітніх | E15: 10
C16: У справах про скоєння злочинів ОГ і ЗО | E16: 11
B17: Про скасування ухвал чи постанов суду (усього) | E17: 12 | G17: 1
B18: у т.ч. | C18: про закриття справи з реабілітуючих підстав | E18: 13
B19: Про зміну ухвал чи постанов суду (усього) | E19: 14
A20: Контрольний рядок | E20: 15 | F20: =SUM(F6:F19) -> 3 | G20: =SUM(G6:G19) -> 8 | H20: =SUM(H6:H19) -> 0 | I20: 0 | J20: 0 | K20: 0 | L20: 0 | M20: 0
A22: Таблиця 4 | E22: рядок | F22: У порядку глав 29-30 КПК (1961 року) | H22: У порядку глави 31 КПК (1961 року) на вироки
A23: Перегляд вироків (за кількістю осіб) | H23: апеляційних судів | J23: місцевих судів
A24: з ініціативи - | F24: прокурора | G24: інших учасників | H24: прокурора | I24: інших учасників | J24: прокурора | K24: інших учасників
A25: а | E25: б | F25: 1 | G25: 2 | H25: 3 | I25: 4 | J25: 5 | K25: 6
A26: Скасовано із закриттям справи чи поверненням на новий судовий розгляд та додаткове розслідування | E26: 1
A27: Постановлено новий вирок при скасуванні | E27: 2 | F27: 1 | H27: x | I27: x | J27: x | K27: x
A28: З ряд.1, 2 за м'якістю | E28: 3
A29: Змінено | E29: 4
A30: у т.ч. | C30: за суворістю | E30: 5
A31: З рядків 1, 4 скасовано чи змінено за обставинами, які виникли після постановлення вироку | E31: 6 | F31: x | H31: x | J31: x
A32: Усього | E32: 7 | F32: 1
A33: З ряд. 7 | B33: У справах про злочини неповнолітніх | E33: 8
B34: У справах про злочини ОГ і ЗО | E34: 9
A35: Контрольний рядок | E35: 10 | F35: =SUM(F26:F34) -> 2 | G35: =SUM(G26:G34) -> 0 | H35: =SUM(H26,H28:H34) -> 0 | I35: =SUM(I26,I28:I34) -> 0 | J35: =SUM(J26,J28:J34) -> 0 | K35: =SUM(K26,K28:K34) -> 0
A37: ='17-19'!A30 -> 0
A38: ='17-19'!A31 -> Прокурор області
A39: ='17-19'!A32 -> 0
I40: ='17-19'!G33 -> В. О. Носенко
A41: (підпис) | I41: (П.І.Б.)
